Cogmind - Beta 15 @@@ ROGUE MODE // 2025.05.07 @ 00:26:47 Player: Owlsley Result: Destroyed by D-53 Grenadier with Mini Grenade Launcher Performance ------------- Evolutions (0) 0 Regions Visited (2) 400 Robots Destroyed (19) 95 Value Destroyed (458) 458 Prototype IDs (4) 80 Alien Tech Used (0) 0 Bonus (0) 0 TOTAL SCORE: 1033 Bonus ------- None Cogmind --------- Core Integrity 0/250 Matter 262/300 Energy 70/100 System Corruption 3% Temperature Cool (33) Movement Core (400) Ox7 Location -10/Mines Parts ------- > --- POWER (1) -------- (None) > --- PROPULSION (2) --- (None) > --- UTILITY (2) ------ Large Storage Unit > --- WEAPON (2) ------- Medium Laser > --- INVENTORY (15) --- Light Ion Engine Light Treads Light Treads Light Treads Huge Storage Unit Huge Storage Unit Medium Matter Pod (54) Signal Interpreter Improved Terrain Scanner Transport Network Coupler Hacking Suite Grenade Launcher Rocket Launcher Peak State ------------ > --- POWER ------------ Ion Engine > --- PROPULSION ------- Light Treads Light Treads > --- UTILITY ---------- Large Storage Unit Seismic Detector > --- WEAPON ----------- Assault Rifle Light Cannon > --- INVENTORY -------- Light Ion Engine Light Treads Light Treads Light Treads Huge Storage Unit Huge Storage Unit Medium Matter Pod Signal Interpreter Improved Terrain Scanner Transport Network Coupler Hacking Suite Medium Laser Light Assault Rifle Grenade Launcher Rocket Launcher [Rating: 9] Favorites ----------- Power Ion Engine Engine Ion Engine Propulsion Light Treads Treads Light Treads Leg Aluminum Leg Utility Seismic Detector Device Seismic Detector Storage Large Storage Unit Weapon Assault Rifle Energy Gun Small Laser Energy Cannon Beam Cannon Ballistic Gun Assault Rifle Ballistic Cannon Light Cannon Launcher Rocket Launcher Build | -11 -10 -10 ------- Run | Yrd Mat Min Slots Evolved . | . . . Power . | . . . Propulsion . | . . . Utility . | . . . Weapon . | . . . Parts Attached 12 | 4 5 3 Power 1 | . 1 . Engine 1 | . 1 . Core . | . . . Reactor . | . . . Propulsion 3 | 2 1 . Treads 3 | 2 1 . Leg . | . . . Wheel . | . . . Hover . | . . . Flight . | . . . Utility 3 | 1 2 . Device 1 | 1 . . Storage 2 | . 2 . Processor . | . . . Hackware . | . . . Protection . | . . . Artifact . | . . . Weapon 5 | 1 1 3 Energy Gun 1 | . . 1 Energy Cannon 1 | . . 1 Ballistic Gun 1 | 1 . . Ballistic Cannon 1 | . 1 . Launcher 1 | . . 1 Special Weapon . | . . . Impact Weapon . | . . . Slashing Weapon . | . . . Piercing Weapon . | . . . Special Melee Weapon . | . . . Unidentified Prototypes . | . . . Parts Lost 7 | . . 7 Power 1 | . . 1 Propulsion 2 | . . 2 Utility 1 | . . 1 Weapon 3 | . . 3 Highest Loss Streak 7 | . . 7 To Critical Strikes . | . . . Average Backups 13 | 7 12 14 Power 1 | 1 1 1 Propulsion 3 | 4 3 3 Utility 5 | 1 5 7 Weapon 3 | 1 2 3 Tool/Special . | . . . Unused Backups 24 | 1 10 13 Power 3 | 1 2 . Propulsion 3 | . . 3 Utility 14 | . 6 8 Weapon 4 | . 2 2 Tool/Special . | . . . Average Slot Usage (%) 99 | . 100 98 Engine 13 | . 14 13 Treads 27 | . 28 27 Device 14 | . 14 14 Storage 14 | . 14 14 Ballistic Gun 13 | . 14 13 Ballistic Cannon 13 | . 13 13 Peak Build Rating 9 | 8 8 9 Average Rating 8 | 6 7 8 On Entrance 7 | 6 7 8 Naked Turns . | . . . Heaviest Build 33 | 12 31 33 Greatest Support 40 | 40 40 40 Greatest Overweight (x) 1 | . 1 . Average Overweight (x) . | . . . Largest Inventory Capacity 15 | 8 15 15 Average Capacity 13 | 8 12 15 Most Carried 15 | 8 15 15 Average Carried 13 | 7 12 14 Final Capacity 15 | 8 15 15 Final Carried 15 | 6 15 13 Class Distribution -------------------- 100% | Mutant Dominant Class ---------------- Mutant | -10/Materials Mutant | -10/Mines Resources | -11 -10 -10 ----------- Run | Yrd Mat Min Matter Collected 689 | 215 432 42 Remotely . | . . . Salvage Created 617 | 69 548 . Parts 42 | 6 36 . Haulers Intercepted 2 | . 2 . Recyclers Shooed 1 | . 1 . Parts Field Recycled . | . . . Retrieved Matter . | . . . Parts Self-Destructed . | . . . Prevented . | . . . Kills | -11 -10 -10 ------- Run | Yrd Mat Min Combat Hostiles Destroyed 9 | . 9 . Guns 3 | . 3 . Cannons 6 | . 6 . Classes Destroyed 6 | 2 4 . Tunneler 1 | 1 . . Hauler 2 | . 2 . Recycler 2 | 1 1 . Operator 2 | . 2 . Watcher 3 | . 3 . Grunt 9 | . 9 . Best Kill Streak 3 | 1 3 . Combat Bots Only 2 | . 2 . Max Kills in Single Turn 1 | 1 1 . Gunslinging . | . . . Exploded . | . . . Melee . | . . . Uniques/NPCs Destroyed . | . . . Combat | -11 -10 -10 -------- Run | Yrd Mat Min Hostile Shots Fired 49 | . 36 13 Missed 6 | . 6 . Hits 43 | . 30 13 Projectile 43 | . 30 13 AOE 15 | . . 15 Damage Taken 1079 | . 378 701 Core 259 | . 62 197 Absorbed by Shields . | . . . Core Remaining (%) 100 | 100 . . Volleys Fired 57 | 6 44 7 Largest 2 | 2 2 2 Hottest 110 | 60 50 110 Shots Fired 109 | 12 88 9 Gun 60 | 12 44 4 Cannon 49 | . 44 5 Launcher . | . . . Special . | . . . Kinetic 97 | 6 88 3 Thermal 12 | 6 . 6 Explosive . | . . . Electromagnetic . | . . . Robot Hit Streak 13 | 2 13 2 Robot Miss Streak 3 | 3 3 3 Penetration Max . | . . . Secondary Targets . | . . . Shots Hit Robots 66 | 5 58 3 Core Hits 34 | 4 29 1 Critical Kills . | . . . Critical Parts Destroyed . | . . . Critical Strikes 3 | . 3 . Blast 3 | . 3 . Melee Attacks . | . . . Impact . | . . . Slashing . | . . . Piercing . | . . . Sneak Attacks . | . . . Combat Hostiles . | . . . Follow-up Attacks . | . . . Damage Inflicted 970 | 48 860 62 Guns 408 | 48 348 12 Cannons 562 | . 512 50 Explosions . | . . . Melee . | . . . Ramming . | . . . Kinetic 900 | 25 860 15 Thermal 70 | 23 . 47 Explosive . | . . . Electromagnetic . | . . . Impact . | . . . Slashing . | . . . Piercing . | . . . Highest Corruption 3 | . 3 3 Average Corruption 2 | . 2 3 Corruption Purged . | . . . Corruption Blocked . | . . . Effects 12 | . 7 5 Message Errors 5 | . 4 1 Matter Fused 5 | . 1 4 Heat Flow Errors 1 | . 1 . Energy Discharges 1 | . 1 . Overload Shots . | . . . Overflow Damage . | . . . Projectiles . | . . . Explosions . | . . . Melee . | . . . Knockbacks 7 | . 7 . Impact . | . . . Kinetic 6 | . 6 . Secondary 1 | . 1 . Self-Inflicted Damage . | . . . Shots . | . . . Rammed . | . . . Targets Rammed . | . . . Kicked . | . . . Crushed . | . . . Highest Temperature 278 | 20 278 33 Average Temperature 35 | 15 43 23 Received Heat Transfer 228 | . 210 18 Siege Activations . | . . . Martial Activations . | . . . Shielding Activations . | . . . Robots Disrupted . | . . . Combat Hostiles . | . . . Robots Corrupted . | . . . Combat Hostiles . | . . . Parts Fried . | . . . Impact Corruptions . | . . . Robots Melted . | . . . Combat Hostiles . | . . . Parts Melted . | . . . Heat Transferred 161 | 50 . 111 Parts Sabotaged . | . . . Parts Stolen . | . . . Parts Stripped . | . . . Power Chain Reactions . | . . . Alert | -11 -10 -10 ------- Run | Yrd Mat Min Maximum Alert Level . | . . . Low Security (%) 100 | 100 100 100 Level 1 . | . . . Level 2 . | . . . Level 3 . | . . . Level 4 . | . . . Level 5 . | . . . High Security . | . . . Max Security . | . . . Peak Influence 104 | 5 104 . Initial . | . . . Average 17 | 1 24 . Influence Increases 348 | 10 338 . Destroy 0b10 Robot/C 180 | . 180 . Destroy 0b10 Robot/NC 50 | 10 40 . Destroy Leader 60 | . 60 . Successful Hack 41 | . 41 . Disable Machine 15 | . 15 . Destroy Structure 2 | . 2 . Influence Decreases 348 | 10 338 . Time Decay 275 | 10 265 . Purge Threat 73 | . 73 . Squads Dispatched 2 | . 2 . Investigation . | . . . Extermination . | . . . Reinforcement 2 | . 2 . Assault . | . . . Garrison . | . . . Intercept . | . . . Searches Triggered . | . . . Construction Impeded . | . . . Haulers Reinforced . | . . . Active Scanning Responses . | . . . Cargo Convoy Interrupts . | . . . Stealth | -11 -10 -10 --------- Run | Yrd Mat Min Distress Signals 1 | . 1 . Communications Jammed . | . . . Distress Signals . | . . . Times Spotted 18 | . 16 2 Peak Tracking Total 3 | . 3 2 Tactical Retreats . | . . . Traps | -11 -10 -10 ------- Run | Yrd Mat Min Traps Triggered 3 | . 3 . Indirectly . | . . . Trap Hack Attempts . | . . . Triggered . | . . . Disarmed . | . . . Reprogrammed . | . . . Reused . | . . . Traps Extracted . | . . . Installed . | . . . Triggered . | . . . Machines | -11 -10 -10 ---------- Run | Yrd Mat Min Machines Disabled 1 | . 1 . Max in Single Turn 1 | . 1 . Machines Repaired . | . . . Machines Dismantled . | . . . Machines Sabotaged . | . . . Overloaded Fab Kills . | . . . Hacking | -11 -10 -10 --------- Run | Yrd Mat Min Machines Accessed 7 | . 7 . Terminals 6 | . 6 . Fabricators . | . . . Repair Stations . | . . . Recycling Units 1 | . 1 . Scanalyzers . | . . . Garrison Access . | . . . Total Hacks 21 | . 21 . Successful 14 | . 14 . Failed 7 | . 7 . Catastrophic 2 | . 2 . Database Lockouts . | . . . Manual 10 | . 10 . Terminals 19 | . 19 . Fabricators . | . . . Repair Stations . | . . . Recycling Units 2 | . 2 . Scanalyzers . | . . . Garrison Access . | . . . Terminal Hacks 10 | . 10 . Part Schematic 1 | . 1 . Robot Analysis 1 | . 1 . Prototype ID Bank 2 | . 2 . Alert Level 1 | . 1 . Unreport Threat 1 | . 1 . Locate Traps 1 | . 1 . Security Status 1 | . 1 . Hauler Manifests 1 | . 1 . Zone Layout 1 | . 1 . Fabricator Hacks . | . . . Repair Station Hacks . | . . . Recycling Unit Hacks . | . . . Scanalyzer . | . . . Garrison Access Hacks . | . . . Unauthorized Hacks 4 | . 4 . Terminals 2 | . 2 . Track 1 | . 1 . Operators 1 | . 1 . Fabricators . | . . . Repair Stations . | . . . Recycling Units 2 | . 2 . Reject 1 | . 1 . Mask 1 | . 1 . Scanalyzers . | . . . Garrison Access . | . . . Data Cores Recovered . | . . . Used . | . . . Hacking Detections 6 | . 6 . Full Trace Events . | . . . Feedback Events . | . . . Feedback Blocked . | . . . Robot Schematics Acquired . | . . . Robots Built . | . . . Authchips . | . . . Time . | . . . Total Robot Build Rating . | . . . Part Schematics Acquired 1 | . 1 . Parts Built . | . . . Authchips . | . . . Time . | . . . Total Part Build Rating . | . . . Parts Repaired . | . . . Time . | . . . Parts Recycled . | . . . Recycled Matter . | . . . Retrieved Matter . | . . . Retrieved Components . | . . . Parts Scanalyzed . | . . . Part Schematics Acquired . | . . . Parts Damaged . | . . . Bothacking | -11 -10 -10 ------------ Run | Yrd Mat Min Used RIF Installer . | . . . Robots Hacked . | . . . Non-combat . | . . . Combat . | . . . Robot Hacks Applied . | . . . Relay Couplers Released . | . . . Fabnet Peak Effective % . | . . . Robots Rewired . | . . . Allies Hacked . | . . . Hacks Repelled . | . . . Allies | -11 -10 -10 -------- Run | Yrd Mat Min Total Allies 5 | . . 5 Largest Group 5 | . . 5 Highest-Rated Group 83 | . . 83 Highest-Rated Ally 31 | . . 31 Total Orders . | . . . Ally Attacks 5 | . . 5 Total Damage 94 | . . 94 Kills . | . . . Allies Corrupted . | . . . Allies Melted . | . . . Intel | -11 -10 -10 ------- Run | Yrd Mat Min Active Infowar (turns) 1538 | 25 1155 358 Seismic 1538 | 25 1155 358 Robot Analysis Total 1 | . 1 . Derelict Logs Recovered 1 | . . 1 Drone Launches . | . . . Drone Recoveries . | . . . Exploration | -11 -10 -10 ------------- Run | Yrd Mat Min Turns Passed 1575 | 60 1155 360 Spaces Moved 810 | 28 572 210 Core . | . . . Treads 783 | 1 572 210 Legs 27 | 27 . . Wheels . | . . . Hover . | . . . Flight . | . . . Fastest Speed 120 | 120 160 160 Average Speed 158 | 121 160 160 Slowest Speed 240 | 160 240 160 Overloaded Moves . | . . . Propulsion Burnouts . | . . . Robots Hopped . | . . . Potential Cave-ins . | . . . Cave-ins Triggered . | . . . Exploration Rate (%) 44 | 4 88 40 Regions Visited 2 Branch Regions 1 Pre-discovered Areas . | . . . Known Exits Taken . | . . . Unknown Exits Taken 2 | 1 1 . Scrap Searched 1 | . . 1 Spaces Dug . | . . . Terrain Destroyed . | . . . Melee . | . . . Projectile . | . . . AOE . | . . . Terrain Rammed . | . . . Walls Destroyed . | . . . Machines Disabled . | . . . Actions | -11 -10 -10 --------- Run | Yrd Mat Min Total 994 | 43 726 225 Wait 73 | . 73 . Move 808 | 27 571 210 Hop . | . . . Pick Up 24 | 3 19 2 Fast Attach 3 | 1 2 . Attach 2 | . . 2 Detach . | . . . Swap 10 | 3 5 2 Drop 17 | 3 12 2 Fire 57 | 6 44 7 Melee . | . . . Ram . | . . . Kick . | . . . Crush . | . . . Escape Stasis . | . . . Rewire . | . . . Trap . | . . . Miscellaneous . | . . . Route ------- -11/Scrapyard -10/Materials (discovered 4 exits: [*Mat x3] / [*Min]) -10/Mines History --------- Turn | Location | Event 10 | -11/Scrapyard | Discovered new exit (range 3) 61 | -11/Scrapyard | Entered Materials 318 | -10/Materials | Build established: Mutant 420 | -10/Materials | Discovered new exit (range 15) 747 | -10/Materials | Discovered new exit (range 14) 1039 | -10/Materials | Discovered new exit (range 16) 1165 | -10/Materials | Discovered new exit (range 12) 1216 | -10/Materials | Entered Mines 1231 | -10/Mines | Received a Rocket Launcher from a helpful Derelict 1296 | -10/Mines | Learned 2 Materials zone layouts 1435 | -10/Mines | Assisted by bots powering up and referring to "LRC-V3" 1548 | -10/Mines | Assembled infested the area 1568 | -10/Mines | Core integrity fell below 50% 1576 | -10/Mines | Core integrity fell below 20% 1576 | -10/Mines | Destroyed by D-53 Grenadier with Mini Grenade Launcher Last Messages --------------- 01562_ Trooper 1b destroyed. 01562_ Trooper 1a destroyed. 01564_ The unstable cave ceiling collapses. 01564_ Lgt. Nuclear Core crushed. 01564_ Lgt. Cannon destroyed. 01565_ Ion Engine destroyed. 01567_ U-05 Engineer lays Concrete. 01568_ Beam Cannon destroyed. 01569_ U-05 Engineer lays Concrete. 01570_ The unstable cave ceiling collapses. 01570_ U-05 Engineer lays Concrete. 01570_ Lgt. Treads destroyed. 01571_ U-05 Engineer lays Concrete. 01573_ The unstable cave ceiling collapses. 01573_ U-05 Engineer lays Concrete. 01574_ Seismic Detector destroyed. 01574_ K-01 Serf destroyed. 01575_ The unstable cave ceiling collapses. 01575_ U-05 Engineer destroyed. 01575_ U-05 Engineer lays Concrete. Map ----- +----------------------------------------------------+ | ?????????????????????????????????## #????? | | ?????????????????????????????????# #?#### | | ???????????????????????????????### ### | | ???????????????????????????????# ## | | ???????????????????????????????# ### | | ???????????????????????????????# #?## | | ??????????????????????########## #??# ## #### | | ??????????????????????# #??# ### #??# | | ??????????????????????# ##########??# #?# #### | | ????????????????????### ###?????????# #?#=] | | ????????????????????# #????????## #?## #### | | ????????????????????# #????????# ##?# #??## | | ?????????????????#### #????????# ### #???# | | ?????????????????# #????????## ## ##### | | ?????????????????# #?????????## ## | | ?????????????????# #??????????## ######### | | ?????????????????#### #???????##### #?####??? | | ????????????????????#######??????## ### #### | | ????????????????????????????????## ## | | ???????????????????????????????## | | ??????????????????????#######?## ## | | ?????????????????????## ### ######### | | ????????????????????## # ### ##???????? | | ?????????????????#### ##?#####????????? | | ????????????????## ###???????????????? | | ????????????????# d% @ ##?????????????????? | | ????????????????#% d #??????????????????? | | ??????????? % u #??????????????????? | | ??????????######## #??????????????????? | | ?????????????????## #?????????????????? | | ??????????????????### ## #????????????????? | | ????????????????????## #### ? #????????????????? | | ?????????????????????# ???? ?? ##????????????????? | | ?????????????????????# ???? ??#?????????????????? | | ?????????????????????# ???? ????????????????????? | | ?????????????????????#????? #???????????????????? | | ???????????????????????????###???????????????????? | | ?????????????????????????????????????????????????? | | ?????????????????????????????????????????????????? | | ?????????????????????????????????????????????????? | | ?????????????????????????????????????????????????? | | ?????????????????????????????????????????????????? | | ?????????????????????????????????????????????????? | | ?????????????????????????????????????????????????? | | ?????????????????????????????????????????????????? | | ?????????????????????????????????????????????????? | | ?????????????????????????????????????????????????? | | ?????????????????????????????????????????????????? | | ?????????????????????????????????????????????????? | | ?????????????????????????????????????????????????? | +----------------------------------------------------+ Best States ------------- Heat Dissipation 25 Energy Generation 10 Energy Capacity 250 Matter Stores 300 Matter Capacity 300 Sight Range 16 Terrain Scan Density 10 Evasion (%) 55 Recoil Reduction 2 Item Schematics ----------------- Lgt. Treads | -10/Materials | Hacked Robot Schematics ------------------ None Fabricated ------------ Nothing Repaired ---------- Nothing Alien Tech Used ----------------- None Achievements -------------- None Challenges ------------ None Game ------ Seed NovaCouplerInjector Manual? 0 Play Time 00:13:32 Cumulative 0.1 hours Start 2025.05.07 @ 00:14:01 End 2025.05.07 @ 00:26:47 Sessions 5 Manual Loads 0 Difficulty Rogue Special Mode None Game No. 2 Rogue 1 Adventurer 1 Explorer 0 Win Type - Total 0 Types 0/0/0/0/0/0/0/0/0/0 Lore% 0 Gallery% 1 Achievement% 76 Wizard Run 0 Options --------- Layout 0 ASCII 0 Keyboard 0 Movement Mouse Keybinds 0 Fullscreen 2 Font 18/SmallcapsGlow Map View 76x50 Zoom Use 0% Tactical HUD 1 Map Filters NONE Filters NONE Steam 1 RUN: 76b6198d-421c-4a0f-8d09-b1002d1b2041